Cogmind - Beta 15 @@@ ROGUE MODE // 2025.06.11 @ 23:03:44 Player: jumpy Result: Destroyed by P-80 Master with Gamma Rifle Performance ------------- Evolutions (8) 4000 Regions Visited (12) 2400 Robots Destroyed (18) 90 Value Destroyed (344) 344 Prototype IDs (3) 60 Alien Tech Used (0) 0 Bonus (788) 788 TOTAL SCORE: 7682 Bonus ------- Registered with UFD 300 Met Optimus in HQ 500 Friendly Fire -12 Cogmind --------- Core Integrity 0/1450 Matter 247/300 Energy 99/100 System Corruption 13% Temperature Cool (58) Movement Core (50) Location -2/Research Parts ------- > --- POWER (1) -------- (None) > --- PROPULSION (8) --- (None) > --- UTILITY (10) ----- A0-MCA's Component Scanner > --- WEAPON (4) ------- (None) > --- INVENTORY (5) ---- Light Antimatter Reactor Peak State ------------ > --- POWER ------------ Light Antimatter Reactor > --- PROPULSION ------- Combat Antigrav System Combat Antigrav System Combat Antigrav System Combat Antigrav System Combat Antigrav System Combat Antigrav System > --- UTILITY ---------- Power Amplifier Advanced Visual Processing Unit Advanced Sensor Array Hacking Suite A0-MCA's Component Scanner > --- WEAPON ----------- Quantum Rifle > --- INVENTORY -------- Light Antimatter Reactor Xenon Bombardment Thruster Xenon Bombardment Thruster Xenon Bombardment Thruster [Rating: 89] Favorites ----------- Power Cooled Ion Engine Engine Cooled Ion Engine Power Core Micro Fission Core Reactor Light Antimatter Reactor Propulsion Light Treads Treads Light Treads Wheel Armored Wheel Hover Unit Combat Antigrav System Flight Unit Nuclear Pulse Thruster Utility Seismic Detector Device Seismic Detector Storage Large Storage Unit Processor Advanced Visual Processing Unit Hackware Hacking Suite Weapon Heavy Plasma Cannon Energy Gun Medium Laser Energy Cannon Heavy Plasma Cannon Ballistic Gun Coil Gun Ballistic Cannon Heavy Flak Cannon Launcher Heavy Rocket Launcher Special Weapon CPS Tube Build | -11 -10 -10 -8 -6 -6 -6 -6 -6 -5 -4 -3 -2 ------- Run | Yrd Mat Sub Scr Fac Was Fac Low Low Fac Fac Res Res Slots Evolved 16 | . . . . 8 . . . . 2 2 2 2 Power . | . . . . . . . . . . . . . Propulsion 6 | . . . . 2 . . . . 2 1 1 . Utility 8 | . . . . 5 . . . . . 1 1 1 Weapon 2 | . . . . 1 . . . . . . . 1 Parts Attached 56 | 7 3 . 6 9 2 . . 3 . 4 16 6 Power 6 | 1 1 . . . . . . . . 1 2 1 Engine 2 | 1 1 . . . . . . . . . . . Core 1 | . . . . . . . . . . 1 . . Reactor 3 | . . . . . . . . . . . 2 1 Propulsion 21 | 2 . . 3 1 . . . 1 . 3 9 2 Treads 3 | 2 . . . 1 . . . . . . . . Leg . | . . . . . . . . . . . . . Wheel 3 | . . . 3 . . . . . . . . . Hover 8 | . . . . . . . . . . . 6 2 Flight 7 | . . . . . . . . 1 . 3 3 . Utility 15 | 2 1 . . 5 . . . 1 . . 4 2 Device 6 | 1 . . . 2 . . . . . . 2 1 Storage 2 | 1 1 . . . . . . . . . . . Processor 3 | . . . . 2 . . . . . . 1 . Hackware 4 | . . . . 1 . . . 1 . . 1 1 Protection . | . . . . . . . . . . . . . Artifact . | . . . . . . . . . . . . . Weapon 14 | 2 1 . 3 3 2 . . 1 . . 1 1 Energy Gun 3 | 1 . . . 1 . . . . . . 1 . Energy Cannon 4 | . . . 1 2 . . . . . . . 1 Ballistic Gun 3 | 1 1 . 1 . . . . . . . . . Ballistic Cannon 1 | . . . . . . . . 1 . . . . Launcher 2 | . . . . . 2 . . . . . . . Special Weapon 1 | . . . 1 . . . . . . . . . Impact Weapon . | . . . . . . . . . . . . . Slashing Weapon . | . . . . . . . . . . . . . Piercing Weapon . | . . . . . . . . . . . . . Special Melee Weapon . | . . . . . . . . . . . . . Unidentified Prototypes 1 | . 1 . . . . . . . . . . . Parts Lost 23 | . . . . . 4 . . . . 5 9 5 Power 2 | . . . . . . . . . . . 1 1 Propulsion 8 | . . . . . 1 . . . . 3 4 . Utility 9 | . . . . . 1 . . . . 2 3 3 Weapon 4 | . . . . . 2 . . . . . 1 1 Highest Loss Streak 5 | . . . . . 4 . . . . 5 4 5 To Critical Strikes . | . . . . . . . . . . . . . Average Backups 9 | 5 8 10 14 12 12 5 5 4 5 4 2 . Power 1 | . 1 2 2 2 1 1 1 1 1 . . . Propulsion 1 | 1 2 2 2 1 1 1 1 . . 1 1 . Utility 2 | . 1 2 3 1 1 1 2 3 2 2 . . Weapon 3 | 1 3 4 5 7 8 1 1 . . . . . Tool/Special . | . . . . . . . . . . . . . Unused Backups 21 | 1 2 . 7 . 6 2 . . 3 . . . Power 5 | . 2 . . . 1 1 . . 1 . . . Propulsion 1 | . . . 1 . . . . . . . . . Utility 4 | 1 . . . . 1 . . . 2 . . . Weapon 11 | . . . 6 . 4 1 . . . . . . Tool/Special . | . . . . . . . . . . . . . Average Slot Usage (%) 79 | . 100 100 100 98 87 28 26 42 37 31 45 27 Engine 8 | . 14 14 14 6 4 . . . . . . . Treads 13 | . 28 28 17 19 11 . . . . . . . Wheel 6 | . . . 10 6 12 1 . . . . . . Hover 1 | . . . . . . . . . . . 17 5 Device 11 | . 14 14 14 19 16 6 6 6 5 5 5 2 Storage 8 | . 14 14 14 6 5 . . . . . . . Processor 4 | . . . . 12 13 13 13 13 11 10 7 4 Hackware 3 | . . . . 5 6 6 6 11 11 10 4 8 Energy Gun 4 | . 14 14 5 1 . . . . . . 1 . Energy Cannon 6 | . . . 9 13 6 . . . . . . 2 Ballistic Gun 7 | . 14 14 13 3 . . . . . . . . Peak Build Rating 89 | 7 10 10 24 52 52 20 18 31 31 39 89 64 Average Rating 23 | 6 8 10 18 50 44 18 18 28 28 27 61 45 On Entrance 20 | . 7 10 10 24 51 20 18 18 31 27 20 24 Naked Turns . | . . . . . . . . . . . . . Heaviest Build 56 | 12 33 33 44 56 56 1 1 9 9 6 20 30 Greatest Support 96 | 40 40 40 40 63 24 12 3 6 6 22 96 28 Greatest Overweight (x) 9 | . . . 1 . 9 . . 1 1 . 1 3 Average Overweight (x) . | . . . . . 1 . . . . . . . Largest Inventory Capacity 15 | 8 15 15 15 15 15 5 5 5 5 5 5 5 Average Capacity 11 | 7 14 15 15 15 13 5 5 5 5 5 5 5 Most Carried 15 | 7 11 10 15 14 14 5 5 5 5 5 5 1 Average Carried 9 | 5 8 10 14 12 12 4 5 4 4 4 2 . Final Capacity 15 | 8 15 15 15 15 5 5 5 5 5 5 5 5 Final Carried 15 | 6 10 10 15 14 5 5 5 5 5 2 . 1 Class Distribution -------------------- 67% | Mutant 11% | Derelict-Skirmisher 9% | Hacker-Mutant 7% | Scout 3% | Hacker-Scout Dominant Class ---------------- Mutant | -10/Materials Mutant | -10/Subcaves Mutant | -8/Scraptown Derelict-Skirmisher | -6/Factory Derelict-Skirmisher | -6/Waste Scout | -6/Factory Scout | -6/Lower Caves Hacker-Mutant | -6/Lower Caves Hacker-Scout | -5/Factory Hacker-Scout | -4/Factory Mutant | -3/Research Hacker-Mutant | -2/Research Resources | -11 -10 -10 -8 -6 -6 -6 -6 -6 -5 -4 -3 -2 ----------- Run | Yrd Mat Sub Scr Fac Was Fac Low Low Fac Fac Res Res Matter Collected 857 | 314 . 31 70 . . . . 32 . 123 67 220 Remotely 220 | . . . . . . . . . . . . 220 Salvage Created 941 | 324 . . 70 . 260 . . . . . 67 220 Parts 30 | 17 . . 2 . 3 . . . . . 3 5 Haulers Intercepted 1 | . . . . . . . . . . . . 1 Recyclers Shooed 1 | 1 . . . . . . . . . . . . Parts Field Recycled . | . . . . . . . . . . . . . Retrieved Matter . | . . . . . . . . . . . . . Parts Self-Destructed 17 | . . 14 . . . . . 3 . . . . Prevented 1 | . . . . . . . . 1 . . . . Kills | -11 -10 -10 -8 -6 -6 -6 -6 -6 -5 -4 -3 -2 ------- Run | Yrd Mat Sub Scr Fac Was Fac Low Low Fac Fac Res Res Combat Hostiles Destroyed 5 | . . . 1 . 1 . . . . . 2 1 Guns 2 | . . . . . . . . . . . 2 . AOE 1 | . . . . . 1 . . . . . . . Classes Destroyed 8 | 3 . . 1 . 1 . . . . . 1 2 Worker 2 | 2 . . . . . . . . . . . . Tunneler 9 | 9 . . . . . . . . . . . . Hauler 1 | . . . . . . . . . . . . 1 Recycler 1 | 1 . . . . . . . . . . . . Swarmer 2 | . . . . . . . . . . . 2 . Grunt 1 | . . . . . . . . . . . . 1 Compactor 1 | . . . . . 1 . . . . . . . Scrapper 1 | . . . 1 . . . . . . . . . Best Kill Streak 2 | 2 . . 1 . 1 . . . . . 2 1 Combat Bots Only 2 | . . . 1 . 1 . . . . . 2 1 Max Kills in Single Turn 1 | 1 . . 1 . 1 . . . . . 1 1 Gunslinging . | . . . . . . . . . . . . . Exploded 1 | . . . . . 1 . . . . . . . Melee . | . . . . . . . . . . . . . Uniques/NPCs Destroyed . | . . . . . . . . . . . . . Combat | -11 -10 -10 -8 -6 -6 -6 -6 -6 -5 -4 -3 -2 -------- Run | Yrd Mat Sub Scr Fac Was Fac Low Low Fac Fac Res Res Hostile Shots Fired 336 | . . . 4 . 4 . . . 35 34 121 138 Missed 114 | . . . 1 . . . . . 17 18 31 47 Hits 222 | . . . 3 . 4 . . . 18 16 90 91 Melee 4 | . . . . . 4 . . . . . . . Projectile 218 | . . . 3 . . . . . 18 16 90 91 Critical Strikes 17 | . . . 1 . 1 . . . 1 1 8 5 Damage Taken 5185 | . . . 118 . 195 . . . 311 621 1933 2007 Core 2973 | . . . 76 . . . . . 258 382 802 1455 Absorbed by Shields . | . . . . . . . . . . . . . Regen/Repaired (Parts) 234 | . . . 234 . . . . . . . . . Core Remaining (%) 74 | 100 . . 69 . . . . 100 74 66 38 . Volleys Fired 80 | 44 . 1 . . 7 . . . . . 19 9 Largest 2 | 2 . 2 . . 2 . . . . . 1 1 Hottest 129 | 70 . 70 . . 129 . . . . . 94 81 Shots Fired 129 | 87 . 2 . . 12 . . . . . 19 9 Gun 108 | 87 . 2 . . . . . . . . 19 . Cannon 11 | . . . . . 2 . . . . . . 9 Launcher 10 | . . . . . 10 . . . . . . . Special . | . . . . . . . . . . . . . Kinetic 45 | 44 . 1 . . . . . . . . . . Thermal 65 | 43 . 1 . . 2 . . . . . 19 . Explosive 10 | . . . . . 10 . . . . . . . Electromagnetic 9 | . . . . . . . . . . . . 9 Robot Hit Streak 8 | 8 . . . . 5 . . . . . 4 4 Robot Miss Streak 7 | 7 . 2 . . 3 . . . . . 2 2 Penetration Max . | . . . . . . . . . . . . . Secondary Targets . | . . . . . . . . . . . . . Shots Hit Robots 77 | 50 . . . . 9 . . . . . 12 6 Core Hits 30 | 18 . . . . 3 . . . . . 7 2 Critical Kills . | . . . . . . . . . . . . . Critical Parts Destroyed . | . . . . . . . . . . . . . Critical Strikes 4 | 4 . . . . . . . . . . . . Burn 4 | 4 . . . . . . . . . . . . Melee Attacks . | . . . . . . . . . . . . . Impact . | . . . . . . . . . . . . . Slashing . | . . . . . . . . . . . . . Piercing . | . . . . . . . . . . . . . Sneak Attacks . | . . . . . . . . . . . . . Combat Hostiles . | . . . . . . . . . . . . . Follow-up Attacks . | . . . . . . . . . . . . . Damage Inflicted 2260 | 548 3 25 28 . 1072 . . . . . 353 231 Guns 908 | 548 . 25 . . . . . . . . 335 . Cannons 285 | . . . . . 64 . . . . . . 221 Explosions 1008 | . . . . . 1008 . . . . . . . Melee . | . . . . . . . . . . . . . Ramming 59 | . 3 . 28 . . . . . . . 18 10 Kinetic 196 | 183 . 13 . . . . . . . . . . Thermal 776 | 365 . 12 . . 64 . . . . . 335 . Explosive 1008 | . . . . . 1008 . . . . . . . Electromagnetic 221 | . . . . . . . . . . . . 221 Impact . | . . . . . . . . . . . . . Slashing . | . . . . . . . . . . . . . Piercing . | . . . . . . . . . . . . . Highest Corruption 14 | . . . . . 14 14 14 14 . . 5 12 Average Corruption 11 | . . . . . 8 14 14 14 . . 2 5 Corruption Purged . | . . . . . . . . . . . . . Corruption Blocked . | . . . . . . . . . . . . . Effects 30 | . . . . . 5 8 7 5 . . 3 2 Message Errors 10 | . . . . . 2 4 3 1 . . . . Matter Fused 2 | . . . . . . . . 1 . . 1 . Heat Flow Errors 5 | . . . . . . 2 . 1 . . . 2 Energy Discharges 5 | . . . . . . 1 3 1 . . . . Data Loss (minor) 5 | . . . . . 2 1 1 1 . . . . Data Loss (major) 1 | . . . . . . . . . . . 1 . Alerts 1 | . . . . . . . . . . . 1 . Weapon Failures 1 | . . . . . 1 . . . . . . . Overload Shots . | . . . . . . . . . . . . . Overflow Damage 7 | . . . 7 . . . . . . . . . Projectiles . | . . . . . . . . . . . . . Explosions . | . . . . . . . . . . . . . Melee 7 | . . . 7 . . . . . . . . . Knockbacks . | . . . . . . . . . . . . . Impact . | . . . . . . . . . . . . . Kinetic . | . . . . . . . . . . . . . Secondary . | . . . . . . . . . . . . . Self-Inflicted Damage 26 | . . . 13 . . . . . . . 9 4 Shots . | . . . . . . . . . . . . . Rammed 12 | . 1 . 3 . . . . . 1 . 4 3 Targets Rammed 12 | . 1 . 3 . . . . . 1 . 4 3 Kicked . | . . . . . . . . . . . . . Crushed . | . . . . . . . . . . . . . Highest Temperature 327 | 80 . . 39 . 49 161 . 98 . . 327 205 Average Temperature 67 | 30 . . 39 . 26 74 . 64 . . 154 42 Received Heat Transfer 612 | . . . 61 . . . . . 63 45 380 63 Effects 1 | . . . . . . . . . . . 1 . Energy Bleed 1 | . . . . . . . . . . . 1 . Siege Activations . | . . . . . . . . . . . . . Martial Activations . | . . . . . . . . . . . . . Shielding Activations . | . . . . . . . . . . . . . Robots Disrupted . | . . . . . . . . . . . . . Combat Hostiles . | . . . . . . . . . . . . . Robots Corrupted 3 | . . . 1 . . . . . . . . 2 Combat Hostiles 2 | . . . 1 . . . . . . . . 1 Parts Fried 4 | . . . 1 . . . . . . . . 3 Impact Corruptions 1 | . . . 1 . . . . . . . . . Robots Melted . | . . . . . . . . . . . . . Combat Hostiles . | . . . . . . . . . . . . . Parts Melted 5 | 3 . . 1 . . . . . . . 1 . Heat Transferred 1950 | 1369 . 37 . . 100 . . . . . 444 . Parts Sabotaged . | . . . . . . . . . . . . . Parts Stolen . | . . . . . . . . . . . . . Parts Stripped . | . . . . . . . . . . . . . Power Chain Reactions . | . . . . . . . . . . . . . Alert | -11 -10 -10 -8 -6 -6 -6 -6 -6 -5 -4 -3 -2 ------- Run | Yrd Mat Sub Scr Fac Was Fac Low Low Fac Fac Res Res Maximum Alert Level . | . . . . . . . . . . . . . Low Security (%) 100 | 100 100 . . 100 100 100 . . 100 100 100 100 Level 1 . | . . . . . . . . . . . . . Level 2 . | . . . . . . . . . . . . . Level 3 . | . . . . . . . . . . . . . Level 4 . | . . . . . . . . . . . . . Level 5 . | . . . . . . . . . . . . . High Security . | . . . . . . . . . . . . . Max Security . | . . . . . . . . . . . . . Peak Influence 65 | 10 . . . 10 26 24 . . 20 4 65 20 Initial 11 | . . . . . . . . . . 4 . 11 Average 2 | . . . . . 6 2 . . 3 1 14 2 Influence Increases 374 | 60 . 15 . 10 36 24 . . 45 2 140 42 Destroy 0b10 Robot/C 60 | . . . . . . . . . . . 40 20 Destroy 0b10 Robot/NC 65 | 60 . . . . . . . . . . . 5 Destroy Leader 12 | . . . . . . . . . . . 10 2 Successful Hack 36 | . . . . 10 . 24 . . . 2 . . Disable Machine 15 | . . . . . . . . . . . 15 . Destroy Structure 36 | . . . . . 36 . . . . . . . Partial Spotted 30 | . . . . . . . . . 30 . . . Lose Combat Pursuer 120 | . . 15 . . . . . . 15 . 75 15 Influence Decreases 369 | 60 . 15 . 10 36 24 . . 35 12 120 57 Entered New Map 15 | . . . . . . . . . . 6 . 9 Time Decay 288 | 60 . 15 . 10 30 24 . . 35 6 60 48 Lost Part 66 | . . . . . 6 . . . . . 60 . Squads Dispatched 11 | . 2 . . 3 . 2 . . 1 . 1 2 Investigation 5 | . 1 . . 3 . 1 . . . . . . Extermination 3 | . . . . . . 1 . . . . 1 1 Reinforcement 3 | . 1 . . . . . . . 1 . . 1 Assault . | . . . . . . . . . . . . . Garrison . | . . . . . . . . . . . . . Intercept . | . . . . . . . . . . . . . Searches Triggered . | . . . . . . . . . . . . . Construction Impeded . | . . . . . . . . . . . . . Haulers Reinforced 1 | . . . . . . . . . . . . 1 Active Scanning Responses . | . . . . . . . . . . . . . Cargo Convoy Interrupts . | . . . . . . . . . . . . . Stealth | -11 -10 -10 -8 -6 -6 -6 -6 -6 -5 -4 -3 -2 --------- Run | Yrd Mat Sub Scr Fac Was Fac Low Low Fac Fac Res Res Distress Signals 1 | . . . . . . . . . . . . 1 Communications Jammed . | . . . . . . . . . . . . . Distress Signals . | . . . . . . . . . . . . . Times Spotted 67 | . . 4 7 . 5 2 . . 6 7 18 18 Peak Tracking Total 17 | . . 2 6 . 5 1 . . 4 7 10 17 Tactical Retreats 5 | . . 1 . . . . . . 1 . 2 1 Traps | -11 -10 -10 -8 -6 -6 -6 -6 -6 -5 -4 -3 -2 ------- Run | Yrd Mat Sub Scr Fac Was Fac Low Low Fac Fac Res Res Traps Triggered 2 | . . . . 1 . . . . . . . 1 Indirectly . | . . . . . . . . . . . . . Trap Hack Attempts . | . . . . . . . . . . . . . Triggered . | . . . . . . . . . . . . . Disarmed . | . . . . . . . . . . . . . Reprogrammed . | . . . . . . . . . . . . . Reused . | . . . . . . . . . . . . . Traps Extracted . | . . . . . . . . . . . . . Installed . | . . . . . . . . . . . . . Triggered . | . . . . . . . . . . . . . Machines | -11 -10 -10 -8 -6 -6 -6 -6 -6 -5 -4 -3 -2 ---------- Run | Yrd Mat Sub Scr Fac Was Fac Low Low Fac Fac Res Res Machines Disabled 1 | . . . . . . . . . . . 1 . Max in Single Turn 1 | . . . . . . . . . . . 1 . Garrison Access 1 | . . . . . . . . . 1 . . . Machines Repaired . | . . . . . . . . . . . . . Machines Dismantled . | . . . . . . . . . . . . . Machines Sabotaged . | . . . . . . . . . . . . . Overloaded Fab Kills . | . . . . . . . . . . . . . Hacking | -11 -10 -10 -8 -6 -6 -6 -6 -6 -5 -4 -3 -2 --------- Run | Yrd Mat Sub Scr Fac Was Fac Low Low Fac Fac Res Res Machines Accessed 11 | . . . 1 4 . 2 . . 1 2 1 . Terminals 5 | . . . . 1 . 1 . . . 2 1 . Fabricators . | . . . . . . . . . . . . . Repair Stations . | . . . . . . . . . . . . . Recycling Units 4 | . . . . 3 . 1 . . . . . . Scanalyzers . | . . . . . . . . . . . . . Garrison Access 1 | . . . . . . . . . 1 . . . Total Hacks 35 | . . . 16 10 . 2 . . 1 5 1 . Successful 26 | . . . 16 4 . 2 . . 1 3 . . Failed 9 | . . . . 6 . . . . . 2 1 . Catastrophic 1 | . . . . . . . . . . 1 . . Database Lockouts . | . . . . . . . . . . . . . Manual 16 | . . . . 8 . 2 . . . 5 1 . Terminals 9 | . . . . 2 . 1 . . . 5 1 . Fabricators . | . . . . . . . . . . . . . Repair Stations . | . . . . . . . . . . . . . Recycling Units 9 | . . . . 8 . 1 . . . . . . Scanalyzers . | . . . . . . . . . . . . . Garrison Access 1 | . . . . . . . . . 1 . . . Terminal Hacks 17 | . . . 16 1 . . . . . . . . Record 16 | . . . 16 . . . . . . . . . Part Schematic 1 | . . . . 1 . . . . . . . . Fabricator Hacks . | . . . . . . . . . . . . . Repair Station Hacks . | . . . . . . . . . . . . . Recycling Unit Hacks . | . . . . . . . . . . . . . Scanalyzer . | . . . . . . . . . . . . . Garrison Access Hacks 1 | . . . . . . . . . 1 . . . Seal Access 1 | . . . . . . . . . 1 . . . Unauthorized Hacks 8 | . . . . 3 . 2 . . . 3 . . Terminals 5 | . . . . 1 . 1 . . . 3 . . Assimilate 1 | . . . . . . 1 . . . . . . Botnet 2 | . . . . 1 . . . . . 1 . . Disrupt 1 | . . . . . . . . . . 1 . . Skim 1 | . . . . . . . . . . 1 . . Fabricators . | . . . . . . . . . . . . . Repair Stations . | . . . . . . . . . . . . . Recycling Units 3 | . . . . 2 . 1 . . . . . . Fedlink 3 | . . . . 2 . 1 . . . . . . Scanalyzers . | . . . . . . . . . . . . . Garrison Access . | . . . . . . . . . . . . . Data Cores Recovered . | . . . . . . . . . . . . . Used . | . . . . . . . . . . . . . Hacking Detections 6 | . . . . 3 . 1 . . . 1 1 . Full Trace Events 1 | . . . . 1 . . . . . . . . Feedback Events . | . . . . . . . . . . . . . Feedback Blocked . | . . . . . . . . . . . . . Robot Schematics Acquired . | . . . . . . . . . . . . . Robots Built . | . . . . . . . . . . . . . Authchips . | . . . . . . . . . . . . . Time . | . . . . . . . . . . . . . Total Robot Build Rating . | . . . . . . . . . . . . . Part Schematics Acquired 1 | . . . . 1 . . . . . . . . Parts Built . | . . . . . . . . . . . . . Authchips . | . . . . . . . . . . . . . Time . | . . . . . . . . . . . . . Total Part Build Rating . | . . . . . . . . . . . . . Parts Repaired . | . . . . . . . . . . . . . Time . | . . . . . . . . . . . . . Parts Recycled . | . . . . . . . . . . . . . Recycled Matter . | . . . . . . . . . . . . . Retrieved Matter . | . . . . . . . . . . . . . Retrieved Components . | . . . . . . . . . . . . . Parts Scanalyzed . | . . . . . . . . . . . . . Part Schematics Acquired . | . . . . . . . . . . . . . Parts Damaged . | . . . . . . . . . . . . . Bothacking | -11 -10 -10 -8 -6 -6 -6 -6 -6 -5 -4 -3 -2 ------------ Run | Yrd Mat Sub Scr Fac Was Fac Low Low Fac Fac Res Res Used RIF Installer . | . . . . . . . . . . . . . Robots Hacked . | . . . . . . . . . . . . . Non-combat . | . . . . . . . . . . . . . Combat . | . . . . . . . . . . . . . Robot Hacks Applied . | . . . . . . . . . . . . . Relay Couplers Released . | . . . . . . . . . . . . . Fabnet Peak Effective % . | . . . . . . . . . . . . . Robots Rewired . | . . . . . . . . . . . . . Allies Hacked . | . . . . . . . . . . . . . Hacks Repelled . | . . . . . . . . . . . . . Allies | -11 -10 -10 -8 -6 -6 -6 -6 -6 -5 -4 -3 -2 -------- Run | Yrd Mat Sub Scr Fac Was Fac Low Low Fac Fac Res Res Total Allies 1 | . . . . . . 1 . . . . . . Largest Group 1 | . . . . . . 1 1 . . . . . Highest-Rated Group 26 | . . . . . . 26 26 . . . . . Highest-Rated Ally 26 | . . . . . . 26 26 . . . . . Total Orders 2 | . . . . . . . 2 . . . . . STAY 1 | . . . . . . . 1 . . . . . FOLLOW 1 | . . . . . . . 1 . . . . . Ally Attacks . | . . . . . . . . . . . . . Total Damage . | . . . . . . . . . . . . . Kills . | . . . . . . . . . . . . . Allies Corrupted . | . . . . . . . . . . . . . Allies Melted . | . . . . . . . . . . . . . Intel | -11 -10 -10 -8 -6 -6 -6 -6 -6 -5 -4 -3 -2 ------- Run | Yrd Mat Sub Scr Fac Was Fac Low Low Fac Fac Res Res Active Infowar (turns) 4820 | 303 226 251 2250 527 134 187 260 153 215 79 235 . Optics 1753 | . . . . 519 134 187 260 153 215 79 206 . Sensors 91 | . . . . . . . . . . . 91 . Terrain 1682 | . . . . 523 134 187 260 153 215 79 131 . Seismic 3675 | 303 226 251 2250 527 118 . . . . . . . Cloaking 608 | . . . . 520 88 . . . . . . . Robot Analysis Total . | . . . . . . . . . . . . . Derelict Logs Recovered 2 | . . . . . . . 1 1 . . . . Drone Launches . | . . . . . . . . . . . . . Drone Recoveries . | . . . . . . . . . . . . . Exploration | -11 -10 -10 -8 -6 -6 -6 -6 -6 -5 -4 -3 -2 ------------- Run | Yrd Mat Sub Scr Fac Was Fac Low Low Fac Fac Res Res Turns Passed 5567 | 736 226 251 2250 527 134 187 260 153 215 79 287 262 Spaces Moved 4555 | 375 121 128 1552 312 91 282 514 149 345 180 293 213 Core 876 | 3 . . . . 1 233 514 43 . 1 4 77 Treads 1654 | 372 121 128 720 312 1 . . . . . . . Legs . | . . . . . . . . . . . . . Wheels 970 | . . . 832 . 89 49 . . . . . . Hover 272 | . . . . . . . . . . . 136 136 Flight 783 | . . . . . . . . 106 345 179 153 . Fastest Speed 34 | 50 160 160 100 160 90 50 50 50 40 37 34 50 Average Speed 110 | 159 160 160 141 160 116 56 50 99 59 39 58 106 Slowest Speed 500 | 160 160 160 240 160 500 90 50 120 120 50 120 200 Overloaded Moves . | . . . . . . . . . . . . . Propulsion Burnouts . | . . . . . . . . . . . . . Robots Hopped 7 | . . . . . . . . . 5 2 . . Potential Cave-ins . | . . . . . . . . . . . . . Cave-ins Triggered . | . . . . . . . . . . . . . Exploration Rate (%) 28 | 15 20 15 81 7 96 9 62 22 13 7 9 8 Regions Visited 12 Branch Regions 4 Pre-discovered Areas 4 | . . . 3 1 . . . . . . . . Known Exits Taken 4 | . . . 1 . . . 1 1 . . 1 . Unknown Exits Taken 6 | 1 1 1 . . . 1 . . 1 1 . . Scrap Searched 7 | . . . 6 . . . . 1 . . . . Spaces Dug . | . . . . . . . . . . . . . Terrain Destroyed 67 | . . . . . 67 . . . . . . . Melee . | . . . . . . . . . . . . . Projectile . | . . . . . . . . . . . . . AOE 67 | . . . . . 67 . . . . . . . Terrain Rammed . | . . . . . . . . . . . . . Walls Destroyed . | . . . . . . . . . . . . . Machines Disabled . | . . . . . . . . . . . . . Actions | -11 -10 -10 -8 -6 -6 -6 -6 -6 -5 -4 -3 -2 --------- Run | Yrd Mat Sub Scr Fac Was Fac Low Low Fac Fac Res Res Total 4950 | 433 152 172 1610 340 102 310 516 153 351 184 392 235 Wait 164 | . 22 44 15 9 . 20 3 . 4 . 43 4 Move 4532 | 374 120 127 1552 312 90 281 513 148 334 175 293 213 Hop 7 | . . . . . . . . . 5 2 . . Pick Up 53 | 7 4 . 19 7 . 4 . 2 3 1 6 . Fast Attach 25 | 7 . . 1 . 2 . . 1 . 2 7 5 Attach 23 | . . . . 9 . . . 2 . 2 10 . Detach 3 | . . . . 1 . . . . . . 2 . Swap 16 | . 3 . 6 2 3 . . . . . 1 1 Drop 37 | 1 2 . 15 . . 5 . . 4 2 8 . Fire 80 | 44 . 1 . . 7 . . . . . 19 9 Melee . | . . . . . . . . . . . . . Ram 9 | . . . 2 . . . . . 1 . 3 3 Kick . | . . . . . . . . . . . . . Crush 1 | . 1 . . . . . . . . . . . Escape Stasis . | . . . . . . . . . . . . . Rewire . | . . . . . . . . . . . . . Trap . | . . . . . . . . . . . . . Miscellaneous . | . . . . . . . . . . . . . Route ------- -11/Scrapyard -10/Materials -10/Subcaves (discovered 2 exits: [*Rec] / *Scr) -8/Scraptown (discovered 2 exits: *Fac x2) -6/Factory -6/Waste -6/Factory -6/Lower Caves -6/Lower Caves -5/Factory -4/Factory -3/Research (discovered 3 exits: *Res / Tes x2) -2/Research History --------- Turn | Location | Event 23 | -11/Scrapyard | Discovered new exit (range 15) 737 | -11/Scrapyard | Entered Materials 738 | -10/Materials | Build established: Mutant 738 | -10/Materials | Met a group of wandering Federalists 959 | -10/Materials | Discovered new exit (range 3) 963 | -10/Materials | Entered Subcaves 964 | -10/Subcaves | Continued accompanying wandering Federalists (6) 1076 | -10/Subcaves | Discovered new exit (range 15) 1108 | -10/Subcaves | Lost 3 allies 1207 | -10/Subcaves | Wandering Federalist uncovered a shortcut to Scraptown 1214 | -10/Subcaves | Entered Scraptown 1580 | -8/Scraptown | Visited Fellowship of the Rings 1617 | -8/Scraptown | Visited TADAMA 1928 | -8/Scraptown | Visited Assassins FH 1965 | -8/Scraptown | Visited CR-KLE's Repair Center 1996 | -8/Scraptown | Visited SPCMW 2221 | -8/Scraptown | Visited UFD Registry 2221 | -8/Scraptown | Registered with UFD as "Monomech" 2307 | -8/Scraptown | Visited Cartography Club 2392 | -8/Scraptown | Found Surveybot 17 Chip 2844 | -8/Scraptown | Learned location of Mines (-8) 2844 | -8/Scraptown | Learned location of Zion (-6) 2844 | -8/Scraptown | Learned 12 Research zone layouts 2844 | -8/Scraptown | Learned 16 Factory zone layouts 2844 | -8/Scraptown | Learned 8 Access zone layouts 2844 | -8/Scraptown | Learned 12 Lower Caves zone layouts 2844 | -8/Scraptown | Learned 8 Upper Caves zone layouts 2844 | -8/Scraptown | Learned 20 Upper Caves zone layouts 2844 | -8/Scraptown | Learned 8 Proximity Caves zone layouts 2844 | -8/Scraptown | Learned 24 Proximity Caves zone layouts 2844 | -8/Scraptown | Learned location of 1 exit from Research 2844 | -8/Scraptown | Learned location of 3 exits from Upper Caves 2844 | -8/Scraptown | Identified exit to Factory 2907 | -8/Scraptown | Visited Scrapoid Research Area 2943 | -8/Scraptown | Visited A0-MCA Data Center 2949 | -8/Scraptown | Given a B rating by A0-MCA 2954 | -8/Scraptown | Found A0-MCA's Component Scanner 2971 | -8/Scraptown | Visited Science Testing Area 2985 | -8/Scraptown | Visited Derelict Rescue Squad 3006 | -8/Scraptown | Visited LU-1G1's Boring Crew 3102 | -8/Scraptown | Visited DA-N13 Charitable Foundation 3111 | -8/Scraptown | Found DCF Scrap (27 items) 3171 | -8/Scraptown | Visited Research Penetration Think Tank 3195 | -8/Scraptown | Visited Science Guys 3257 | -8/Scraptown | CR-KLE repaired 4 parts 3403 | -8/Scraptown | Met Optimus 3403 | -8/Scraptown | Accepted into 0bPrime 3450 | -8/Scraptown | Civil war broke out across Scraptown 3462 | -8/Scraptown | Discovered exit to Factory (range 3) 3464 | -8/Scraptown | Entered Factory 3464 | -6/Factory | Evolved 8 slots: Propulsion x2, Utility x5, Weapon x1 3465 | -6/Factory | Identified exit to Factory 3646 | -6/Factory | Loaded intel: 8 recycling unit locations 3758 | -6/Factory | Build established: Derelict-Skirmisher 3859 | -6/Factory | Learned location of Protoforge (-2) 3991 | -6/Factory | Sucked down chute 3991 | -6/Factory | Entered Waste 4006 | -6/Waste | EMP discharged 4007 | -6/Waste | Spotted C-40 Crusher 4013 | -6/Waste | Spotted C-40 Crusher 4020 | -6/Waste | Spotted C-40 Crusher 4024 | -6/Waste | Destroyed C-40 Crusher 4036 | -6/Waste | Spotted C-40 Crusher 4064 | -6/Waste | Spotted C-40 Crusher 4079 | -6/Waste | Crushed by Compactor (1 part destroyed, 2 dropped) 4085 | -6/Waste | Spotted C-40 Crusher 4096 | -6/Waste | Discovered new exit (range 20) 4101 | -6/Waste | Crushed by Compactor (1 part destroyed, 2 dropped) 4104 | -6/Waste | Crushed by Compactor (1 part destroyed, 2 dropped) 4106 | -6/Waste | EMP discharged 4106 | -6/Waste | System corruption reached 10% 4109 | -6/Waste | Crushed by Compactor (1 part destroyed, 2 dropped) 4125 | -6/Waste | Entered Factory 4135 | -6/Factory | Loaded intel: 8 recycling unit locations 4140 | -6/Factory | Lost 4 parts (1n1u2w) 4241 | -6/Factory | Discovered new exit (range 16) 4312 | -6/Factory | Entered Lower Caves 4312 | -6/Lower Caves | Accompanied by 1 ally 4313 | -6/Lower Caves | Identified exit to Lower Caves 4336 | -6/Lower Caves | Learned Factory terminal intel 4471 | -6/Lower Caves | Build established: Scout 4572 | -6/Lower Caves | Entered another Lower Caves area 4685 | -6/Lower Caves | Learned Factory emergency access door positions 4713 | -6/Lower Caves | Discovered exit to Factory (range 9) 4725 | -6/Lower Caves | Entered Factory 4725 | -5/Factory | Evolved 2 slots: Propulsion x2 4727 | -5/Factory | Loaded intel: 28 terminal locations 4876 | -5/Factory | Discovered new exit (range 14) 4940 | -5/Factory | Entered another Factory area 4940 | -4/Factory | Evolved 2 slots: Propulsion x1, Utility x1 4993 | -4/Factory | Discovered new exit (range 19) 5019 | -4/Factory | Entered Research 5019 | -3/Research | Evolved 2 slots: Propulsion x1, Utility x1 5020 | -3/Research | Identified exit to Testing 5021 | -3/Research | Identified exit to Research 5048 | -3/Research | Lost 5 parts (3n2u) 5260 | -3/Research | Lost 4 parts (1p2u1w) 5300 | -3/Research | Core integrity fell below 50% 5306 | -3/Research | Entered another Research area 5306 | -2/Research | Evolved 2 slots: Utility x1, Weapon x1 5336 | -2/Research | Lost 4 parts (4n) 5490 | -2/Research | Found Exp. Hacking Suite 5530 | -2/Research | Build established: Hacker-Mutant 5561 | -2/Research | Core integrity fell below 50% 5565 | -2/Research | Core integrity fell below 20% 5565 | -2/Research | System corruption reached 10% 5568 | -2/Research | Destroyed by P-80 Master with Gamma Rifle Last Messages --------------- 05550_ Slug penetrates Wall. 05550_ Penetrated by Slug. 05550_ Exp. Hacking Suite destroyed. 05551_ Penetrated by Slug. 05554_ Slug penetrates Wall. 05557_ Penetrated by Slug. 05558_ Slug penetrates Y-72 Warden. 05560_ Penetrated by Slug. 05560_ Slug penetrates Y-72 Warden. 05560_ Penetrated by Slug. 05560_ Slug penetrates Wall. 05561_ Penetrated by Slug. 05563_ Slug penetrates Wall. 05563_ Penetrated by Slug. 05564_ System corrupted: Heat flow error (+254). 05564_ Slug penetrates Wall. 05564_ Slammed into P-80 Master. 05564_ Penetrated by Slug. 05565_ Slammed into P-80 Master. 05567_ Penetrated by Slug. Map ----- +----------------------------------------------------+ | ??????????###+######## ##??????????????????????? | | ????????????????? ?# #???????????????????????? | | ????????????????? ?# #???????????????????????? | | ????????????????? ?# #???????????????????????? | | ????????????????? ## ##??????????????????????? | | ???????????????###/## #??????????????????????? | | ??????# ######## ## ""?????????????????? | | ???? / """????????????????? | | ????????#####/## ## """????????????????? | | ???????????????# ## #?? ????????????????? | | ???????????????# ####+###??? ??????????????? | | ???????????????+ #???????#########?????????????? | | ???????????????# #???????# ] ?????????????? | | ???????????????# #???????# ?????????????? | | ???????????????# #???????# """ ??????????? | | ???????????????# #???????# """ ???????????? | | ???????????????+ #???????? """????????????? | | ???????????????# #????????? ?????????????? | | ???????????????# #?????????? ??????????????? | | ???????????????# #?????????###/###########?????? | | ???????????????# ######????# # #?????? | | ???????????????# ###### # #?????? | | ???????????????# p p + #?????? | | ???????????????# pp### # ! #?????? | | ???????????????# h #?# # #?????? | | ???????????????# @ #?###############?????? | | ??????????+ #?????????????????????? | | ??????????# k ph #?????????????????????? | | ??????????? #?????????????????????? | | ??????????# k #?????????????????????? | | ??????????# #?????????????????????? | | ??????????# #?????????????????????? | | ??????????+ #?????????????????????? | | ??????????# #?????????????????????? | | ???????????? #?????????????????????? | | ??????????????g #?????????????????????? | | ?????????????? #?????????????????????? | | ???????????????? ####?????????????????????? | | ?????????????????? ?????????????????????????? | | ?????????????????????#+#?????????????????????????? | | ?????????????????????????????????????????????????? | | ?????????????????????????????????????????????????? | | ?????????????????????????????????????????????????? | | ?????????????????????????????????????????????????? | | ?????????????????????????????????????????????????? | | ?????????????????????????????????????????????????? | | ?????????????????????????????????????????????????? | | ?????????????????????????????????????????????????? | | ?????????????????????????????????????????????????? | | ?????????????????????????????????????????????????? | +----------------------------------------------------+ Best States ------------- Heat Dissipation 49 Energy Generation 25 Energy Capacity 350 Matter Stores 300 Matter Capacity 300 Sight Range 20 Robot Scan Range 16 Terrain Scan Range 16 Terrain Scan Density 1210 Cloak Strength 2 Power Amplification 20 Evasion (%) 62 Recoil Reduction 3 Offensive Hacking 26 Defensive Hacking 12 Item Schematics ----------------- Adv. Shield Generator | -6/Factory | Hacked Robot Schematics ------------------ None Fabricated ------------ Nothing Repaired ---------- Nothing Alien Tech Used ----------------- None Achievements -------------- None Challenges ------------ None Game ------ Seed TerrorSapperStorm Manual? 0 Play Time 00:36:59 Cumulative 124.8 hours Start 2025.06.11 @ 20:22:53 End 2025.06.11 @ 23:03:44 Sessions 1 Manual Loads 0 Difficulty Rogue Special Mode None Game No. 325 Rogue 325 Adventurer 0 Explorer 0 Win Type - Total 3 Types 2/0/1/0/0/0/0/0/0/0 Lore% 61 Gallery% 53 Achievement% 45 Wizard Run 0 Options --------- Layout 0 ASCII 0 Keyboard 0 Movement Numpad Keybinds 0 Fullscreen 2 Font 18/Terminus Map View 76x50 Zoom Use 0% Tactical HUD 1 Map Filters NONE Filters NONE Steam 1 RUN: 3477093e-6e04-4446-bf6a-8a7ab20fdb08